[Event "Titled Tuesday Blitz March 29 Early 2022"]
[White "Garv Gaur"]
[Black "Mika, Tomasz"]
[WhiteFideId "45030839"]
[BlackFideId "1132970"]
[WhiteElo "1950"]
[BlackElo "2116"]
[Result "1-0"]
[Round "11"]
[TimeControl "180+1"]
[Date "2022.03.30"]
[WhiteClock "0:00:38"]
[BlackClock "0:00:25"]

1. d4 {[%clk 0:03:00]}  d5 {[%clk 0:02:59]} 2. Nf3 {[%clk 0:02:59]}  e6 {[%clk 0:02:59]} 3. c4 {[%clk 0:03:00]}  c5 {[%clk 0:02:59]} 4. cxd5 {[%clk 0:03:00]}  exd5 {[%clk 0:02:58]} 5. g3 {[%clk 0:03:00]}  Nc6 {[%clk 0:02:58]} 6. Bg2 {[%clk 0:02:59]}  Nf6 {[%clk 0:02:58]} 7. O-O {[%clk 0:02:59]}  Be7 {[%clk 0:02:58]} 8. Nc3 {[%clk 0:03:00]}  O-O {[%clk 0:02:57]} 9. Bg5 {[%clk 0:02:58]}  c4 {[%clk 0:02:57]} 10. Ne5 {[%clk 0:02:55]}  Be6 {[%clk 0:02:56]} 11. f4 {[%clk 0:02:55]}  h6 {[%clk 0:02:51]} 12. Bxf6 {[%clk 0:02:54]}  Bxf6 {[%clk 0:02:50]} 13. f5 {[%clk 0:02:55]}  Bxe5 {[%clk 0:02:34]} 14. dxe5 {[%clk 0:02:55]}  d4 {[%clk 0:02:22]} 15. fxe6 {[%clk 0:02:45]}  dxc3 {[%clk 0:02:19]} 16. exf7+ {[%clk 0:02:46]}  Kh8 {[%clk 0:02:18]} 17. bxc3 {[%clk 0:02:44]}  Qb6+ {[%clk 0:02:14]} 18. Kh1 {[%clk 0:02:40]}  Nxe5 {[%clk 0:02:14]} 19. Qd5 {[%clk 0:02:29]}  Ng4 {[%clk 0:02:01]} 20. Qf3 {[%clk 0:02:18]}  Nf6 {[%clk 0:01:56]} 21. Rfb1 {[%clk 0:02:17]}  Qe6 {[%clk 0:01:41]} 22. Rxb7 {[%clk 0:02:16]}  Rad8 {[%clk 0:01:40]} 23. Rxa7 {[%clk 0:02:10]}  Rd2 {[%clk 0:01:39]} 24. Qa8 {[%clk 0:01:55]}  Qd6 {[%clk 0:01:08]} 25. Rf1 {[%clk 0:01:33]}  Kh7 {[%clk 0:00:47]} 26. Qf3 {[%clk 0:01:07]}  Qe6 {[%clk 0:00:37]} 27. Qf5+ {[%clk 0:01:04]}  Qxf5 {[%clk 0:00:36]} 28. Rxf5 {[%clk 0:01:05]}  Rxe2 {[%clk 0:00:34]} 29. h3 {[%clk 0:01:02]}  Kg6 {[%clk 0:00:34]} 30. Rf4 {[%clk 0:00:41]}  Rxf7 {[%clk 0:00:31]} 31. Rxf7 {[%clk 0:00:42]}  Kxf7 {[%clk 0:00:29]} 32. Bd5+ {[%clk 0:00:42]}  Ke7 {[%clk 0:00:27]} 33. Bxc4 {[%clk 0:00:43]}  Ne4 {[%clk 0:00:25]} 34. Bxe2 {[%clk 0:00:39]}  Nxg3+ {[%clk 0:00:24]} 35. Kg2 {[%clk 0:00:37]}  Nxe2 {[%clk 0:00:25]} 36. Re4+ {[%clk 0:00:38]} 1-0


[Site "https://www.chess.com"]

[Event "Titled Tuesday Blitz March 29 Early 2022"]
[White "Goryachkina, Aleksandra"]
[Black "Weetik, Vjacheslav"]
[WhiteFideId "4147103"]
[BlackFideId "4153472"]
[WhiteElo "2426"]
[BlackElo "2469"]
[Result "0-1"]
[Round "11"]
[TimeControl "180+1"]
[Date "2022.03.29"]
[WhiteClock "0:00:01"]
[BlackClock "0:00:03"]

1. e4 {[%clk 0:02:59]}  c6 {[%clk 0:03:00]} 2. d4 {[%clk 0:02:59]}  d5 {[%clk 0:03:00]} 3. exd5 {[%clk 0:02:59]}  cxd5 {[%clk 0:03:01]} 4. Bd3 {[%clk 0:02:59]}  Nc6 {[%clk 0:03:01]} 5. c3 {[%clk 0:02:59]}  Qc7 {[%clk 0:03:01]} 6. h3 {[%clk 0:02:56]}  g6 {[%clk 0:02:59]} 7. Nf3 {[%clk 0:02:53]}  Bf5 {[%clk 0:02:58]} 8. O-O {[%clk 0:02:51]}  Nf6 {[%clk 0:02:37]} 9. Re1 {[%clk 0:02:50]}  Bg7 {[%clk 0:02:35]} 10. Na3 {[%clk 0:02:30]}  O-O {[%clk 0:02:19]} 11. Nb5 {[%clk 0:02:22]}  Qd7 {[%clk 0:02:05]} 12. Ne5 {[%clk 0:01:54]}  Nxe5 {[%clk 0:02:01]} 13. dxe5 {[%clk 0:01:53]}  Ne4 {[%clk 0:01:52]} 14. Nd4 {[%clk 0:01:37]}  Bxe5 {[%clk 0:01:24]} 15. Nxf5 {[%clk 0:01:36]}  gxf5 {[%clk 0:01:20]} 16. Bxe4 {[%clk 0:01:28]}  fxe4 {[%clk 0:01:19]} 17. Rxe4 {[%clk 0:01:27]}  Qf5 {[%clk 0:01:03]} 18. Rg4+ {[%clk 0:01:16]}  Kh8 {[%clk 0:01:03]} 19. Rg5 {[%clk 0:00:53]}  Qe6 {[%clk 0:00:53]} 20. Be3 {[%clk 0:00:40]}  f6 {[%clk 0:00:52]} 21. Rg4 {[%clk 0:00:32]}  Rg8 {[%clk 0:00:50]} 22. Rxg8+ {[%clk 0:00:25]}  Rxg8 {[%clk 0:00:49]} 23. Qf3 {[%clk 0:00:24]}  Bb8 {[%clk 0:00:17]} 24. Rd1 {[%clk 0:00:22]}  Rd8 {[%clk 0:00:13]} 25. Bf4 {[%clk 0:00:19]}  Bxf4 {[%clk 0:00:13]} 26. Qxf4 {[%clk 0:00:20]}  a6 {[%clk 0:00:09]} 27. Qd2 {[%clk 0:00:16]}  Qf5 {[%clk 0:00:07]} 28. Re1 {[%clk 0:00:13]}  e5 {[%clk 0:00:07]} 29. Re3 {[%clk 0:00:12]}  Qe6 {[%clk 0:00:04]} 30. Rf3 {[%clk 0:00:10]}  d4 {[%clk 0:00:02]} 31. cxd4 {[%clk 0:00:03]}  Rxd4 {[%clk 0:00:03]} 32. Qh6 {[%clk 0:00:03]}  Rd1+ {[%clk 0:00:01]} 33. Kh2 {[%clk 0:00:03]}  Rd8 {[%clk 0:00:02]} 34. Qxf6+ {[%clk 0:00:02]}  Qxf6 {[%clk 0:00:02]} 35. Rxf6 {[%clk 0:00:03]}  Rd7 {[%clk 0:00:03]} 36. Re6 {[%clk 0:00:04]}  Rd2 {[%clk 0:00:03]} 37. Rxe5 {[%clk 0:00:04]}  Rxb2 {[%clk 0:00:03]} 38. Kg3 {[%clk 0:00:04]}  b5 {[%clk 0:00:03]} 39. f4 {[%clk 0:00:02]}  Rxa2 {[%clk 0:00:03]} 40. f5 {[%clk 0:00:03]}  Kg7 {[%clk 0:00:03]} 41. Re6 {[%clk 0:00:02]}  b4 {[%clk 0:00:03]} 42. Rb6 {[%clk 0:00:02]}  a5 {[%clk 0:00:03]} 43. Kf4 {[%clk 0:00:02]}  Rxg2 {[%clk 0:00:02]} 44. Rb7+ {[%clk 0:00:02]}  Kf6 {[%clk 0:00:03]} 45. Rb6+ {[%clk 0:00:03]}  Ke7 {[%clk 0:00:03]} 46. Rb7+ {[%clk 0:00:03]}  Kd6 {[%clk 0:00:04]} 47. f6 {[%clk 0:00:03]}  Rf2+ {[%clk 0:00:04]} 48. Kg5 {[%clk 0:00:03]}  Kc6 {[%clk 0:00:03]} 49. Ra7 {[%clk 0:00:01]}  Kb6 {[%clk 0:00:04]} 50. Rxh7 {[%clk 0:00:01]}  b3 {[%clk 0:00:03]} 51. Rh8 {[%clk 0:00:01]}  a4 {[%clk 0:00:03]} 52. Kg6 {[%clk 0:00:01]}  Kc5 {[%clk 0:00:02]} 53. f7 {[%clk 0:00:01]}  b2 {[%clk 0:00:02]} 54. Rb8 {[%clk 0:00:01]}  a3 {[%clk 0:00:03]} 0-1


[Site "https://www.chess.com"]

[Event "Titled Tuesday Blitz March 29 Early 2022"]
[White "Gu, Xiaobing"]
[Black "Cramling Bellon, Anna"]
[WhiteFideId "8602611"]
[BlackFideId "32009232"]
[WhiteElo "2174"]
[BlackElo "1905"]
[Result "0-1"]
[Round "11"]
[TimeControl "180+1"]
[Date "2022.03.30"]
[WhiteClock "0:00:27"]
[BlackClock "0:00:02"]

1. Nf3 {[%clk 0:03:00]}  d5 {[%clk 0:02:59]} 2. g3 {[%clk 0:03:01]}  c5 {[%clk 0:02:59]} 3. Bg2 {[%clk 0:03:01]}  Nc6 {[%clk 0:02:55]} 4. O-O {[%clk 0:03:01]}  e5 {[%clk 0:02:54]} 5. d3 {[%clk 0:03:00]}  Nf6 {[%clk 0:02:54]} 6. Nbd2 {[%clk 0:03:00]}  Be7 {[%clk 0:02:48]} 7. e4 {[%clk 0:03:00]}  d4 {[%clk 0:02:45]} 8. a4 {[%clk 0:02:59]}  O-O {[%clk 0:02:43]} 9. Nc4 {[%clk 0:02:59]}  Qc7 {[%clk 0:02:42]} 10. Nh4 {[%clk 0:02:52]}  Be6 {[%clk 0:02:27]} 11. b3 {[%clk 0:02:40]}  a6 {[%clk 0:02:19]} 12. f4 {[%clk 0:02:27]}  b5 {[%clk 0:02:14]} 13. axb5 {[%clk 0:02:18]}  axb5 {[%clk 0:02:15]} 14. Rxa8 {[%clk 0:02:18]}  Rxa8 {[%clk 0:02:11]} 15. Nxe5 {[%clk 0:02:14]}  Nxe5 {[%clk 0:01:57]} 16. fxe5 {[%clk 0:02:14]}  Ng4 {[%clk 0:01:49]} 17. Bh3 {[%clk 0:01:47]}  Nxe5 {[%clk 0:01:21]} 18. Bxe6 {[%clk 0:01:47]}  fxe6 {[%clk 0:01:22]} 19. Qh5 {[%clk 0:01:45]}  g6 {[%clk 0:01:01]} 20. Qh6 {[%clk 0:01:41]}  Ng4 {[%clk 0:00:56]} 21. Qf4 {[%clk 0:01:25]}  Qxf4 {[%clk 0:00:42]} 22. Rxf4 {[%clk 0:01:18]}  Ra1 {[%clk 0:00:34]} 23. Rf1 {[%clk 0:01:11]}  Bxh4 {[%clk 0:00:23]} 24. gxh4 {[%clk 0:01:10]}  Ra2 {[%clk 0:00:18]} 25. h3 {[%clk 0:01:09]}  Ne3 {[%clk 0:00:18]} 26. Bxe3 {[%clk 0:01:06]}  dxe3 {[%clk 0:00:19]} 27. Rc1 {[%clk 0:01:06]}  Kg7 {[%clk 0:00:10]} 28. Kf1 {[%clk 0:01:06]}  Kh6 {[%clk 0:00:10]} 29. Ke2 {[%clk 0:01:06]}  Kh5 {[%clk 0:00:11]} 30. Kxe3 {[%clk 0:01:06]}  Kxh4 {[%clk 0:00:11]} 31. Kf4 {[%clk 0:00:59]}  Kxh3 {[%clk 0:00:12]} 32. Ke5 {[%clk 0:00:59]}  h5 {[%clk 0:00:06]} 33. Kxe6 {[%clk 0:00:57]}  h4 {[%clk 0:00:07]} 34. Rh1+ {[%clk 0:00:49]}  Kg3 {[%clk 0:00:05]} 35. Rg1+ {[%clk 0:00:50]}  Kf2 {[%clk 0:00:03]} 36. Rh1 {[%clk 0:00:37]}  Kg3 {[%clk 0:00:03]} 37. Rg1+ {[%clk 0:00:37]}  Kf2 {[%clk 0:00:03]} 38. Rxg6 {[%clk 0:00:37]}  h3 {[%clk 0:00:03]} 39. Rh6 {[%clk 0:00:27]}  Ra6+ {[%clk 0:00:02]} 0-1


[Site "https://www.chess.com"]

[Event "Titled Tuesday Blitz March 29 Early 2022"]
[White "Guseva, Marina"]
[Black "Kostina, Nadezhda"]
[WhiteFideId "4149351"]
[BlackFideId "4195876"]
[WhiteElo "2160"]
[BlackElo "1982"]
[Result "0-1"]
[Round "11"]
[TimeControl "180+1"]
[Date "2022.03.30"]
[WhiteClock "0:00:17"]
[BlackClock "0:00:20"]

1. d4 {[%clk 0:03:00]}  Nf6 {[%clk 0:02:57]} 2. Nf3 {[%clk 0:02:59]}  e6 {[%clk 0:02:57]} 3. Bf4 {[%clk 0:02:59]}  b6 {[%clk 0:02:55]} 4. e3 {[%clk 0:02:58]}  Bb7 {[%clk 0:02:55]} 5. Be2 {[%clk 0:02:58]}  c5 {[%clk 0:02:54]} 6. O-O {[%clk 0:02:56]}  Be7 {[%clk 0:02:47]} 7. c3 {[%clk 0:02:55]}  O-O {[%clk 0:02:46]} 8. a4 {[%clk 0:02:53]}  d6 {[%clk 0:02:45]} 9. Nbd2 {[%clk 0:02:52]}  Nbd7 {[%clk 0:02:43]} 10. h3 {[%clk 0:02:51]}  Ne4 {[%clk 0:02:40]} 11. a5 {[%clk 0:02:47]}  f5 {[%clk 0:02:38]} 12. Nc4 {[%clk 0:02:29]}  b5 {[%clk 0:02:32]} 13. a6 {[%clk 0:02:25]}  Bd5 {[%clk 0:02:17]} 14. Na5 {[%clk 0:02:24]}  Qb6 {[%clk 0:02:07]} 15. c4 {[%clk 0:02:15]}  bxc4 {[%clk 0:02:05]} 16. Nxc4 {[%clk 0:02:14]}  Qc6 {[%clk 0:01:56]} 17. Na5 {[%clk 0:02:08]}  Qb6 {[%clk 0:01:55]} 18. dxc5 {[%clk 0:02:07]}  Ndxc5 {[%clk 0:01:50]} 19. Nd4 {[%clk 0:01:57]}  Qxb2 {[%clk 0:01:42]} 20. Bc4 {[%clk 0:01:08]}  Nc3 {[%clk 0:01:19]} 21. Qh5 {[%clk 0:00:42]}  g6 {[%clk 0:00:56]} 22. Qh6 {[%clk 0:00:41]}  e5 {[%clk 0:00:56]} 23. Bxd5+ {[%clk 0:00:34]}  Nxd5 {[%clk 0:00:55]} 24. Ndc6 {[%clk 0:00:31]}  exf4 {[%clk 0:00:46]} 25. Nxe7+ {[%clk 0:00:30]}  Nxe7 {[%clk 0:00:46]} 26. Qxf4 {[%clk 0:00:30]}  Qe5 {[%clk 0:00:44]} 27. Qc4+ {[%clk 0:00:29]}  Qd5 {[%clk 0:00:42]} 28. Qh4 {[%clk 0:00:26]}  Qe6 {[%clk 0:00:38]} 29. Rfd1 {[%clk 0:00:25]}  Ne4 {[%clk 0:00:37]} 30. Nb7 {[%clk 0:00:22]}  Rac8 {[%clk 0:00:33]} 31. f3 {[%clk 0:00:20]}  Nf6 {[%clk 0:00:29]} 32. Rxd6 {[%clk 0:00:18]}  Qxe3+ {[%clk 0:00:28]} 33. Kh2 {[%clk 0:00:17]}  Qe5+ {[%clk 0:00:20]} 0-1


[Site "https://www.chess.com"]

[Event "Titled Tuesday Blitz March 29 Early 2022"]
[White "Jary, Sergey"]
[Black "Postnikov, Daniil"]
[WhiteFideId "14110350"]
[BlackFideId "4166329"]
[WhiteElo "2260"]
[BlackElo "2261"]
[Result "1-0"]
[Round "11"]
[TimeControl "180+1"]
[Date "2022.03.29"]
[WhiteClock "0:01:49"]
[BlackClock "0:01:23"]

1. e4 {[%clk 0:02:58]}  e6 {[%clk 0:02:59]} 2. d4 {[%clk 0:02:58]}  d5 {[%clk 0:02:59]} 3. Nd2 {[%clk 0:02:59]}  c5 {[%clk 0:02:57]} 4. Ngf3 {[%clk 0:02:58]}  cxd4 {[%clk 0:02:56]} 5. exd5 {[%clk 0:02:57]}  Qxd5 {[%clk 0:02:52]} 6. Bc4 {[%clk 0:02:54]}  Qd6 {[%clk 0:02:52]} 7. O-O {[%clk 0:02:52]}  Nf6 {[%clk 0:02:50]} 8. Nb3 {[%clk 0:02:52]}  Nc6 {[%clk 0:02:46]} 9. Nbxd4 {[%clk 0:02:50]}  Nxd4 {[%clk 0:02:47]} 10. Nxd4 {[%clk 0:02:50]}  a6 {[%clk 0:02:44]} 11. Bb3 {[%clk 0:02:45]}  Qc7 {[%clk 0:02:41]} 12. Re1 {[%clk 0:02:42]}  Bd6 {[%clk 0:02:39]} 13. h3 {[%clk 0:02:42]}  O-O {[%clk 0:02:38]} 14. Bg5 {[%clk 0:02:38]}  Bd7 {[%clk 0:02:21]} 15. Bxf6 {[%clk 0:02:38]}  gxf6 {[%clk 0:02:22]} 16. c3 {[%clk 0:02:38]}  Kh8 {[%clk 0:02:19]} 17. Qf3 {[%clk 0:02:33]}  f5 {[%clk 0:02:19]} 18. Rad1 {[%clk 0:02:29]}  Rg8 {[%clk 0:02:16]} 19. Kf1 {[%clk 0:02:28]}  Rg6 {[%clk 0:02:05]} 20. Qd3 {[%clk 0:02:28]}  Rag8 {[%clk 0:02:04]} 21. Nf3 {[%clk 0:02:22]}  Bc5 {[%clk 0:01:31]} 22. Ne5 {[%clk 0:02:08]}  Bc6 {[%clk 0:01:26]} 23. Nxg6+ {[%clk 0:02:08]}  hxg6 {[%clk 0:01:24]} 24. Qg3 {[%clk 0:01:55]}  Kg7 {[%clk 0:01:23]} 25. Qxc7 {[%clk 0:01:49]} 1-0


[Site "https://www.chess.com"]

[Event "Titled Tuesday Blitz March 29 Early 2022"]
[White "Jaskolka, Tomasz"]
[Black "Abdusattorov, Nodirbek"]
[WhiteFideId "1170791"]
[BlackFideId "14204118"]
[WhiteElo "2073"]
[BlackElo "2663"]
[Result "0-1"]
[Round "11"]
[TimeControl "180+1"]
[Date "2022.03.29"]
[WhiteClock "0:00:11"]
[BlackClock "0:00:38"]

1. d4 {[%clk 0:03:00]}  Nf6 {[%clk 0:02:57]} 2. Bf4 {[%clk 0:03:00]}  g6 {[%clk 0:02:56]} 3. Nc3 {[%clk 0:03:00]}  d5 {[%clk 0:02:54]} 4. e3 {[%clk 0:03:00]}  Bg7 {[%clk 0:02:53]} 5. h4 {[%clk 0:02:59]}  h5 {[%clk 0:02:52]} 6. Nf3 {[%clk 0:03:00]}  O-O {[%clk 0:02:52]} 7. Be2 {[%clk 0:02:56]}  c5 {[%clk 0:02:33]} 8. Ne5 {[%clk 0:02:53]}  Nc6 {[%clk 0:02:05]} 9. Qd2 {[%clk 0:02:37]}  Bf5 {[%clk 0:01:57]} 10. g4 {[%clk 0:02:24]}  Nxg4 {[%clk 0:01:52]} 11. Bxg4 {[%clk 0:02:21]}  Bxg4 {[%clk 0:01:47]} 12. Nxg4 {[%clk 0:02:21]}  hxg4 {[%clk 0:01:47]} 13. Ne2 {[%clk 0:02:01]}  b5 {[%clk 0:01:19]} 14. h5 {[%clk 0:01:57]}  e5 {[%clk 0:01:04]} 15. dxe5 {[%clk 0:01:51]}  g5 {[%clk 0:01:01]} 16. Bg3 {[%clk 0:01:42]}  Nxe5 {[%clk 0:01:01]} 17. O-O-O {[%clk 0:01:39]}  Nc4 {[%clk 0:00:58]} 18. Qxd5 {[%clk 0:01:37]}  Bxb2+ {[%clk 0:00:57]} 19. Kb1 {[%clk 0:01:36]}  Qf6 {[%clk 0:00:56]} 20. c3 {[%clk 0:01:02]}  Bxc3 {[%clk 0:00:42]} 21. h6 {[%clk 0:00:09]}  Na3+ {[%clk 0:00:41]} 22. Kc1 {[%clk 0:00:09]}  Bb2+ {[%clk 0:00:40]} 23. Kd2 {[%clk 0:00:10]}  Rad8 {[%clk 0:00:39]} 24. h7+ {[%clk 0:00:11]}  Kh8 {[%clk 0:00:38]} 0-1


[Site "https://www.chess.com"]

[Event "Titled Tuesday Blitz March 29 Early 2022"]
[White "Jeet, Jain"]
[Black "Marcziter, Dmitrii"]
[WhiteFideId "5073022"]
[BlackFideId "13900765"]
[WhiteElo "2085"]
[BlackElo "2155"]
[Result "0-1"]
[Round "11"]
[TimeControl "180+1"]
[Date "2022.03.30"]
[WhiteClock "0:00:20"]
[BlackClock "0:00:54"]

1. d4 {[%clk 0:03:00]}  Nf6 {[%clk 0:02:58]} 2. Nf3 {[%clk 0:02:58]}  g6 {[%clk 0:02:58]} 3. Bf4 {[%clk 0:02:58]}  Bg7 {[%clk 0:02:59]} 4. h3 {[%clk 0:02:59]}  d6 {[%clk 0:02:59]} 5. e3 {[%clk 0:02:59]}  O-O {[%clk 0:03:00]} 6. c4 {[%clk 0:02:58]}  b6 {[%clk 0:03:01]} 7. Nc3 {[%clk 0:02:58]}  Bb7 {[%clk 0:03:02]} 8. Be2 {[%clk 0:02:58]}  Nbd7 {[%clk 0:03:03]} 9. O-O {[%clk 0:02:58]}  Qe8 {[%clk 0:03:04]} 10. Rc1 {[%clk 0:02:58]}  e5 {[%clk 0:03:03]} 11. Bh2 {[%clk 0:02:58]}  Qe7 {[%clk 0:03:01]} 12. b4 {[%clk 0:02:55]}  e4 {[%clk 0:03:00]} 13. Nd2 {[%clk 0:02:54]}  Rfe8 {[%clk 0:02:58]} 14. a4 {[%clk 0:02:50]}  a5 {[%clk 0:02:57]} 15. b5 {[%clk 0:02:47]}  Nf8 {[%clk 0:02:55]} 16. c5 {[%clk 0:02:45]}  dxc5 {[%clk 0:02:49]} 17. dxc5 {[%clk 0:02:46]}  Rad8 {[%clk 0:02:49]} 18. cxb6 {[%clk 0:02:36]}  cxb6 {[%clk 0:02:47]} 19. Qb3 {[%clk 0:02:31]}  Rxd2 {[%clk 0:02:44]} 20. Bc4 {[%clk 0:02:31]}  Red8 {[%clk 0:02:38]} 21. Ne2 {[%clk 0:02:26]}  Ne6 {[%clk 0:02:34]} 22. Rfe1 {[%clk 0:01:59]}  Bd5 {[%clk 0:02:30]} 23. Bxd5 {[%clk 0:01:55]}  R2xd5 {[%clk 0:02:29]} 24. Rc6 {[%clk 0:01:53]}  Nc5 {[%clk 0:02:22]} 25. Qc4 {[%clk 0:01:47]}  Rd1 {[%clk 0:02:20]} 26. Kf1 {[%clk 0:01:40]}  Qd7 {[%clk 0:02:12]} 27. Nd4 {[%clk 0:01:38]}  Rxe1+ {[%clk 0:02:12]} 28. Kxe1 {[%clk 0:01:39]}  Nd3+ {[%clk 0:02:02]} 29. Kf1 {[%clk 0:01:36]}  Qb7 {[%clk 0:01:54]} 30. Bc7 {[%clk 0:01:17]}  Rc8 {[%clk 0:01:46]} 31. g4 {[%clk 0:01:09]}  Nb4 {[%clk 0:01:32]} 32. g5 {[%clk 0:00:52]}  Nd7 {[%clk 0:01:29]} 33. Bd6 {[%clk 0:00:39]}  Nxc6 {[%clk 0:01:19]} 34. bxc6 {[%clk 0:00:39]}  Qa8 {[%clk 0:01:14]} 35. c7 {[%clk 0:00:37]}  Qb7 {[%clk 0:01:09]} 36. Nb5 {[%clk 0:00:37]}  Ne5 {[%clk 0:01:06]} 37. Qc2 {[%clk 0:00:32]}  Qc6 {[%clk 0:01:04]} 38. Qd2 {[%clk 0:00:28]}  Nf3 {[%clk 0:01:00]} 39. Qd1 {[%clk 0:00:24]}  Nxg5 {[%clk 0:00:57]} 40. Kg2 {[%clk 0:00:24]}  Qd7 {[%clk 0:00:55]} 41. Qc2 {[%clk 0:00:20]}  Qxh3+ {[%clk 0:00:54]} 0-1


[Site "https://www.chess.com"]

[Event "Titled Tuesday Blitz March 29 Early 2022"]
[White "Jumabayev, Rinat"]
[Black "Aradhya, Garg"]
[WhiteFideId "13702661"]
[BlackFideId "25006746"]
[WhiteElo "2561"]
[BlackElo "2169"]
[Result "1-0"]
[Round "11"]
[TimeControl "180+1"]
[Date "2022.03.29"]
[WhiteClock "0:00:15"]
[BlackClock "0:00:20"]

1. e4 {[%clk 0:03:00]}  e5 {[%clk 0:02:56]} 2. Nf3 {[%clk 0:03:01]}  Nc6 {[%clk 0:02:56]} 3. Bb5 {[%clk 0:03:01]}  a6 {[%clk 0:02:55]} 4. Ba4 {[%clk 0:03:02]}  Bc5 {[%clk 0:02:55]} 5. O-O {[%clk 0:03:00]}  d6 {[%clk 0:02:55]} 6. c3 {[%clk 0:02:59]}  Bd7 {[%clk 0:02:53]} 7. d4 {[%clk 0:02:59]}  Ba7 {[%clk 0:02:53]} 8. Be3 {[%clk 0:02:53]}  Nf6 {[%clk 0:02:53]} 9. Bxc6 {[%clk 0:02:43]}  Bxc6 {[%clk 0:02:52]} 10. dxe5 {[%clk 0:02:44]}  dxe5 {[%clk 0:02:49]} 11. Qxd8+ {[%clk 0:02:42]}  Kxd8 {[%clk 0:02:44]} 12. Bxa7 {[%clk 0:02:42]}  Rxa7 {[%clk 0:02:43]} 13. Nxe5 {[%clk 0:02:43]}  Re8 {[%clk 0:02:41]} 14. Nxc6+ {[%clk 0:02:42]}  bxc6 {[%clk 0:02:41]} 15. f3 {[%clk 0:02:42]}  Rb7 {[%clk 0:02:37]} 16. Rf2 {[%clk 0:02:43]}  Ke7 {[%clk 0:02:34]} 17. Na3 {[%clk 0:02:43]}  Rd8 {[%clk 0:02:34]} 18. Nc4 {[%clk 0:02:42]}  g5 {[%clk 0:02:29]} 19. Re1 {[%clk 0:02:37]}  c5 {[%clk 0:02:22]} 20. g3 {[%clk 0:02:20]}  h5 {[%clk 0:02:21]} 21. Kg2 {[%clk 0:02:19]}  h4 {[%clk 0:02:22]} 22. gxh4 {[%clk 0:02:16]}  gxh4 {[%clk 0:02:22]} 23. Kh3 {[%clk 0:02:16]}  Rh8 {[%clk 0:02:22]} 24. Rd2 {[%clk 0:02:08]}  Rbb8 {[%clk 0:02:15]} 25. e5 {[%clk 0:01:56]}  Nh5 {[%clk 0:02:13]} 26. Re4 {[%clk 0:01:57]}  Rbg8 {[%clk 0:02:11]} 27. Ne3 {[%clk 0:01:49]}  Rg5 {[%clk 0:02:03]} 28. Nd5+ {[%clk 0:01:40]}  Ke6 {[%clk 0:02:01]} 29. Nxc7+ {[%clk 0:01:40]}  Kf5 {[%clk 0:02:02]} 30. e6 {[%clk 0:01:31]}  Nf4+ {[%clk 0:01:42]} 31. Rxf4+ {[%clk 0:01:30]}  Kxf4 {[%clk 0:01:43]} 32. exf7 {[%clk 0:01:25]}  Rf5 {[%clk 0:01:26]} 33. Ne6+ {[%clk 0:01:14]}  Ke3 {[%clk 0:01:25]} 34. Rd7 {[%clk 0:01:08]}  Rxf3+ {[%clk 0:01:21]} 35. Kg4 {[%clk 0:01:07]}  Rf6 {[%clk 0:01:10]} 36. Re7 {[%clk 0:00:57]}  Kd2 {[%clk 0:01:09]} 37. Nxc5 {[%clk 0:00:54]}  Kc1 {[%clk 0:01:04]} 38. b4 {[%clk 0:00:46]}  Rf8 {[%clk 0:01:01]} 39. Nd3+ {[%clk 0:00:41]}  Kd2 {[%clk 0:00:45]} 40. Ne5 {[%clk 0:00:42]}  Kxc3 {[%clk 0:00:45]} 41. Rb7 {[%clk 0:00:37]}  Kd4 {[%clk 0:00:38]} 42. Re7 {[%clk 0:00:32]}  Kd5 {[%clk 0:00:38]} 43. Kg5 {[%clk 0:00:32]}  Rf1 {[%clk 0:00:33]} 44. Kxh4 {[%clk 0:00:20]}  Kd6 {[%clk 0:00:32]} 45. Re8 {[%clk 0:00:21]}  R1xf7 {[%clk 0:00:17]} 46. Nxf7+ {[%clk 0:00:22]}  Rxf7 {[%clk 0:00:18]} 47. Ra8 {[%clk 0:00:21]}  Kc6 {[%clk 0:00:17]} 48. Rxa6+ {[%clk 0:00:19]}  Kb5 {[%clk 0:00:17]} 49. Rg6 {[%clk 0:00:17]}  Kxb4 {[%clk 0:00:17]} 50. Kg5 {[%clk 0:00:18]}  Ra7 {[%clk 0:00:15]} 51. h4 {[%clk 0:00:18]}  Kc5 {[%clk 0:00:16]} 52. h5 {[%clk 0:00:18]}  Kd5 {[%clk 0:00:16]} 53. h6 {[%clk 0:00:17]}  Rxa2 {[%clk 0:00:17]} 54. h7 {[%clk 0:00:15]}  Rg2+ {[%clk 0:00:18]} 55. Kf6 {[%clk 0:00:15]}  Rh2 {[%clk 0:00:18]} 56. Kg7 {[%clk 0:00:15]}  Rxh7+ {[%clk 0:00:19]} 57. Kxh7 {[%clk 0:00:15]}  Ke5 {[%clk 0:00:19]} 58. Kg7 {[%clk 0:00:16]}  Kf5 {[%clk 0:00:20]} 59. Kf7 {[%clk 0:00:15]}  Ke4 {[%clk 0:00:20]} 60. Kf6 {[%clk 0:00:15]}  Kd5 {[%clk 0:00:20]} 61. Rg4 {[%clk 0:00:15]} 1-0


[Site "https://www.chess.com"]

[Event "Titled Tuesday Blitz March 29 Early 2022"]
[White "Karavaeva, Olga"]
[Black "Korchmar, Vasiliy"]
[WhiteFideId "4124111"]
[BlackFideId "24131750"]
[WhiteElo "2300"]
[BlackElo "2715"]
[Result "0-1"]
[Round "11"]
[TimeControl "180+1"]
[Date "2022.03.30"]
[WhiteClock "0:01:02"]
[BlackClock "0:01:14"]

1. c4 {[%clk 0:03:00]}  c6 {[%clk 0:02:59]} 2. e4 {[%clk 0:03:00]}  d5 {[%clk 0:02:59]} 3. exd5 {[%clk 0:03:01]}  cxd5 {[%clk 0:03:00]} 4. d4 {[%clk 0:03:01]}  Nf6 {[%clk 0:02:59]} 5. Nc3 {[%clk 0:03:01]}  g6 {[%clk 0:02:54]} 6. Qb3 {[%clk 0:03:01]}  dxc4 {[%clk 0:02:31]} 7. Bxc4 {[%clk 0:03:01]}  e6 {[%clk 0:02:31]} 8. Nf3 {[%clk 0:02:56]}  Bg7 {[%clk 0:02:31]} 9. O-O {[%clk 0:02:51]}  O-O {[%clk 0:02:32]} 10. Bf4 {[%clk 0:02:48]}  Nc6 {[%clk 0:02:32]} 11. Rad1 {[%clk 0:02:34]}  Na5 {[%clk 0:02:30]} 12. Qb4 {[%clk 0:02:32]}  Nxc4 {[%clk 0:02:28]} 13. Qxc4 {[%clk 0:02:32]}  Bd7 {[%clk 0:02:23]} 14. Ne5 {[%clk 0:02:30]}  Rc8 {[%clk 0:02:20]} 15. Qb3 {[%clk 0:02:27]}  Qb6 {[%clk 0:01:40]} 16. Qxb6 {[%clk 0:02:18]}  axb6 {[%clk 0:01:41]} 17. h3 {[%clk 0:01:53]}  Bc6 {[%clk 0:01:41]} 18. Nxc6 {[%clk 0:01:42]}  Rxc6 {[%clk 0:01:42]} 19. Be5 {[%clk 0:01:43]}  Rd8 {[%clk 0:01:35]} 20. Rfe1 {[%clk 0:01:38]}  Nd5 {[%clk 0:01:32]} 21. Bxg7 {[%clk 0:01:28]}  Kxg7 {[%clk 0:01:33]} 22. Rd3 {[%clk 0:01:11]}  Rc4 {[%clk 0:01:17]} 23. Re2 {[%clk 0:01:02]}  Nf4 {[%clk 0:01:15]} 24. Red2 {[%clk 0:01:01]}  Nxd3 {[%clk 0:01:15]} 25. Rxd3 {[%clk 0:01:02]}  Rcxd4 {[%clk 0:01:14]} 0-1


[Site "https://www.chess.com"]